{"text_format":"1","workbook":"xlsx","n_sheets":3,"sheets":["mikaroka","valiny","fitanisana"],"not_rendered":{"charts":0,"images":0,"macros":1,"external_links":0,"defined_names":0,"comments":0,"pivot_tables":0},"unopened":[],"bounds":{"document_bytes":16777216,"sheet_cells":100000,"rows_first":2000,"rows_last":500,"rows_between":2000,"halvings":0,"cell_chars":16384,"cell_head_chars":4096},"cells_cut":0,"cells_raw":0,"read":"whole","date_system":"1900"}

{"sheet":"mikaroka","index":0,"n_rows":22,"n_cols":12,"rows_kept":22,"cut":false,"hidden":false,"merged":[]}
[null,null,null,null,null,null,{"$f":"IF((B3-INT(B3))<0.5,INT(B3),ROUNDUP(B3,0))","v":2},{"$f":"IF((D3-INT(D3))<0.5,INT(D3),ROUNDUP(D3,0))","v":12}]
[0,2,0,1]
[{"$f":"RAND()","v":0.3447982665829481},{"$f":"(A3-A2)/(A4-A2)*(B4-B2)+B2","v":2.3447982665829481},{"$f":"RAND()","v":0.4542746800133457},{"$f":"((C3-C2)/(C4-C2)*(D4-D2)+D2)","v":11.902592320320297}]
[1,3,1,{"$f":"MAX(fitanisana!A1:A108)","v":25}]
[null,null,null,null,null,null,null,null,"Pour afficher aléatoirement une expression tapez la touche de fonction  F9 "]
[null,null,null,null,null,null,null,null,null,7]
[null,null,null,null,null,null,null,null,"Isaky ny te-ahita  voabolana na fehezan-teny iray  hafa dia tsindrio ny  bokotra Fonction F9"]
[]
[]
["vakio mafy  ny fanontaniana dia valio",null,null,null,null,null,null,null,null,null,null,"Lisez à voix haute et répondez"]
[]
[]
[]
[null,{"$f":"VLOOKUP(H1,fitanisana!A1:C108,G1,FALSE)","v":"Manana anabavy ve hiana ?   Raha Eny, Iza no anarany ?"}]
[]
[]
[]
[]
[]
[]
[]
[null,null,null,null,null,null,null,")"]

{"sheet":"valiny","index":1,"n_rows":14,"n_cols":8,"rows_kept":14,"cut":false,"hidden":true,"merged":[]}
[null,null,null,null,null,null,{"$f":"IF(mikaroka!G1=2,3,2)","v":3},{"$f":"mikaroka!H1","v":12}]
[0,2,0,1]
[{"$f":"RAND()","v":0.83441427171773375},{"$f":"(A3-A2)/(A4-A2)*(B4-B2)+B2","v":2.8344142717177339},{"$f":"RAND()","v":0.94902245933613782},{"$f":"((C3-C2)/(C4-C2)*(D4-D2)+D2)","v":23.776539024067308}]
[1,3,1,{"$f":"MAX(fitanisana!A1:A108)","v":25}]
[]
[]
[]
[]
[]
[]
[]
[]
[]
[null,null,null,null,{"$f":"VLOOKUP(H1,fitanisana!A1:C108,G1,FALSE)","v":"Manana anabavy ve hiana ?   Raha Eny, Iza no anarany ?"}]

{"sheet":"fitanisana","index":2,"n_rows":26,"n_cols":3,"rows_kept":26,"cut":false,"hidden":true,"merged":[]}
[1,"Est ce que vous allez bien ?"," Salama tsara ve hianao ?"]
[{"$f":"A1+1","v":2},"Comment vas-tu ?","Manao ahoana indry ? Manao ahoana ialahy ?"]
[{"$f":"A2+1","v":3},"Où est mon parapluie ? mon impermeable","Aiza ny eloko ? Ny lamba tsy lenako  ?"]
[4,"Quel temps fait-il ?","Manao ahoana ny toetr'andro ?"]
[5,"Quel temps fait-il ?","Manao ahoana ny andro ?"]
[6,"Manana anadahy ve hianao ? ","Manana anadahy ve hianao ? "]
[7,"Manana rahalahy ve hianao ?","Manana rahalahy ve hianao ?"]
[8,"Manana anabavy ve hiana ?","Manana anabavy ve hiana ?"]
[9,"Manana rahavavy ve hianao ?","Manana rahavavy ve hianao ?"]
[10,"Manana anadahy ve hianao ?   Raha Eny, Iza no anarany ?","Manana anadahy ve hianao ?   Raha Eny, Iza no anarany ?"]
[11,"Manana rahalahy ve hianao ?  Raha Eny, Iza no anarany ?","Manana rahalahy ve hianao ?  Raha Eny, Iza no anarany ?"]
[12,"Manana anabavy ve hiana ?   Raha Eny, Iza no anarany ?","Manana anabavy ve hiana ?   Raha Eny, Iza no anarany ?"]
[13,"Manana rahavavy ve hianao ?   Raha Eny, Iza no anarany ?","Manana rahavavy ve hianao ?   Raha Eny, Iza no anarany ?"]
[14,"Manana Nenitoa ve hianao ?","Manana Nenitoa ve hianao ?"]
[15,"Manana Dadatoa ve hianao ?","Manana Dadatoa ve hianao ?"]
[16,"Manana Dadafara ve hianao ?","Manana Dadafara ve hianao ?"]
[17,"Manana Nenifara ve hianao ?","Manana Nenifara ve hianao ?"]
[18,"Manana Nenitoa ve hianao ?   Raha Eny, Iza no anarany ?","Manana Nenitoa ve hianao ?   Raha Eny, Iza no anarany ?"]
[19,"Manana Dadatoa ve hianao ?   Raha Eny, Iza no anarany ?","Manana Dadatoa ve hianao ?   Raha Eny, Iza no anarany ?"]
[20,"Manana Dadafara ve hianao ?   Raha Eny, Iza no anarany ?","Manana Dadafara ve hianao ?   Raha Eny, Iza no anarany ?"]
[21,"Manana Nenifara ve hianao ?   Raha Eny, Iza no anarany ?","Manana Nenifara ve hianao ?   Raha Eny, Iza no anarany ?"]
[22,"Iza no anaran'ny Dadabenao ?","Iza no anaran'ny Dadabenao ?"]
[23,"Iza no anaran'ny Nenibenao ?","Iza no anaran'ny Nenibenao ?"]
[24,"Iza no anaran'ny zafikelin'ny Dadabenao ?","Iza no anaran'ny zafikelin'ny Dadabenao ?"]
[25,"Iza no anaran'ny zafikelin'ny Nenibenao","Iza no anaran'ny zafikelin'ny Nenibenao"]
["FARANY"]